fUST/lending_fUST_20250118
["ID","MTS","AMOUNT","RATE_DAILY","PERIOD"]
[349400608,1737165049208,-1224.09,0.00022328,3]
[349400609,1737165049220,-500.0,0.00022328,3]
[349400610,1737165049229,-452.19889113,0.00022328,3]
[349400611,1737165049239,-500.0,0.00022328,3]
[349400612,1737165049249,-281.00281054,0.00022328,3]
[349400613,1737165049463,-218.99718946,0.00022328,3]
[349400614,1737165049474,-1110.21,0.00022328,3]
[349400615,1737165049484,-964.61,0.00022328,3]
[349400616,1737165049495,-506.61102844,0.00022328,3]
[349400617,1737165049505,-4076.15,0.00022328,3]
[349400618,1737165049515,-519.58,0.00022328,3]
[349400619,1737165049527,-1112.73,0.00022328,3]
[349400620,1737165049537,-969.04132522,0.00022328,3]
[349400621,1737165049548,-108.00867478,0.00022328,3]
[349400622,1737165049558,-491.28507461,0.00022328,3]
[349400623,1737165049570,-342.16492539,0.00022328,3]
[349400624,1737165049580,-500.0,0.00022328,3]
[349400625,1737165049589,-500.0,0.00022328,3]
[349400626,1737165049599,-500.0,0.00022328,3]
[349400627,1737165049609,-507.14,0.00022328,3]
[349400628,1737165049619,-6269.75,0.00022328,3]
[349400629,1737165049629,-500.0,0.00022328,3]
[349400630,1737165049639,-831.72,0.00022328,3]
[349400631,1737165049649,-500.0,0.00022328,3]
[349400632,1737165049659,-500.0,0.00022328,3]
[349400633,1737165049668,-695.5,0.00022328,3]
[349400634,1737165049678,-500.0,0.00022328,3]
[349400635,1737165049687,-500.0,0.00022328,3]
[349400636,1737165049697,-2835.40059523,0.00022328,3]
[349400637,1737165049709,-915.72039297,0.00022328,3]
[349400638,1737165049725,-3916.32718675,0.00022328,3]
[349400639,1737165049803,-8998.82182505,0.00022328,3]
[349400640,1737165049812,-500.0,0.00022328,3]
[349400641,1737165049822,-500.0,0.00022328,3]
[349400642,1737165049831,-319.79011135,0.00022383,3]
[349400643,1737165049841,-151.0,0.000224,6]
[349400644,1737165049851,-319.79011135,0.00022452,3]
[349400645,1737165049861,-160.0,0.00022464,2]
[349400646,1737165049871,-505.90910278,0.00022465,3]
[349400647,1737165049881,-500.0,0.00022465,3]
[349400648,1737165049891,-500.0,0.00022465,3]
[349400649,1737165049900,-500.0,0.00022465,3]
[349400650,1737165049909,-500.0,0.00022465,3]
[349400651,1737165049918,-500.0,0.00022465,3]
[349400652,1737165049927,-500.0,0.00022465,3]
[349400653,1737165049937,-500.0,0.00022465,3]
[349400654,1737165049947,-500.0,0.00022465,3]
[349400655,1737165049957,-500.0,0.00022465,3]
[349400656,1737165049967,-500.0,0.00022465,3]
[349400657,1737165049977,-500.0,0.00022465,3]
[349400658,1737165049986,-508.94746241,0.00022465,3]
[349400659,1737165049996,-670.36,0.00022465,3]
[349400660,1737165050006,-500.0,0.00022465,3]
[349400661,1737165050016,-21.94130394,0.00022465,3]
[349400662,1737165050028,-478.05869606,0.00022465,3]
[349400663,1737165050037,-500.0,0.00022465,3]
[349400664,1737165050046,-1526.67,0.00022465,3]
[349400665,1737165050056,-500.0,0.00022465,3]
[349400666,1737165050065,-500.0,0.00022465,3]
[349400667,1737165050074,-960.98,0.00022465,3]
[349400668,1737165050083,-3511.61,0.00022465,3]
[349400669,1737165050092,-500.0,0.00022465,3]
[349400670,1737165050101,-500.0,0.00022465,3]
[349400671,1737165050111,-2961.83,0.00022465,3]
[349400672,1737165050120,-1289.87,0.00022465,3]
[349400673,1737165050129,-524.22,0.00022465,3]
[349400674,1737165050139,-500.0,0.00022465,2]
[349400675,1737165050149,-27.08800718,0.00022465,3]
[349400676,1737165050161,-959.06199282,0.00022465,3]
[349400677,1737165050171,-500.0,0.00022465,3]
[349400678,1737165050181,-500.0,0.00022465,3]
[349400679,1737165050190,-515.84046914,0.00022465,3]
[349400680,1737165050200,-35.82752483,0.00022465,3]
[349400681,1737165050212,-464.17247517,0.00022465,3]
[349400682,1737165050221,-2745.37,0.00022465,3]
[349400683,1737165050231,-500.0,0.00022465,3]
[349400684,1737165050241,-500.0,0.00022465,3]
[349400685,1737165050251,-500.0,0.00022465,3]
[349400686,1737165050260,-500.0,0.00022465,3]
[349400687,1737165050270,-500.0,0.00022465,3]
[349400688,1737165050279,-493.05566685,0.00022465,3]
[349400689,1737165050289,-500.0,0.00022465,3]
[349400690,1737165050298,-500.0,0.00022465,3]
[349400691,1737165050308,-1630.02,0.00022465,3]
[349400692,1737165050317,-1224.09,0.00022465,3]
[349400693,1737165050327,-500.0,0.00022465,3]
[349400694,1737165050336,-500.0,0.00022465,3]
[349400695,1737165050345,-500.0,0.00022465,3]
[349400696,1737165050356,-1110.21,0.00022465,3]
[349400697,1737165050366,-964.61,0.00022465,3]
[349400698,1737165050375,-4076.15,0.00022465,3]
[349400699,1737165050384,-519.58,0.00022465,3]
[349400700,1737165050394,-1112.73,0.00022465,3]
[349400701,1737165050403,-1077.05,0.00022465,3]
[349400702,1737165050413,-833.45,0.00022465,3]
[349400703,1737165050422,-535.37756614,0.00022465,3]
[349400704,1737165050432,-413.36392058,0.00022465,3]
[349400705,1737165050442,-500.0,0.00022465,3]
[349400706,1737165050454,-507.14,0.00022465,3]
[349400707,1737165050464,-6269.75,0.00022465,3]
[349400708,1737165050474,-500.0,0.00022465,3]
[349400709,1737165050483,-831.72,0.00022465,3]
[349400710,1737165050493,-500.0,0.00022465,3]
[349400711,1737165050502,-500.0,0.00022465,3]
[349400712,1737165050512,-695.5,0.00022465,3]
[349400713,1737165050522,-500.0,0.00022465,3]
[349400714,1737165050533,-500.0,0.00022465,3]
[349400715,1737165050543,-7841.4876733,0.00022465,3]
[349400716,1737165050555,-8824.7823267,0.00022465,3]
[349400717,1737165050565,-283.40097455,0.00022465,3]
[349400718,1737165050574,-500.0,0.00022465,3]
[349400719,1737165050583,-155.0,0.00022484,2]
[349400720,1737165050593,-151.0,0.000225,7]
[349400721,1737165050602,-500.57097557,0.00022521,2]
[349400722,1737165050611,-500.67464495,0.00022521,2]
[349400723,1737165050621,-170.35459089,0.00022521,2]
[349400724,1737165050630,-1004.88396903,0.00022521,2]
[349400725,1737165050639,-1001.52325285,0.00022521,2]
[349400726,1737165050648,-502.14004931,0.00022521,2]
[349400727,1737165050657,-319.79011135,0.00022521,3]
[349400728,1737165050667,-319.79011135,0.0002259,3]
[349400729,1737165050676,-151.0,0.000226,6]
[349400730,1737165050685,-160.0,0.00022601,2]
[349400731,1737165050694,-500.0,0.00022602,3]
[349400732,1737165050704,-500.0,0.00022602,3]
[349400733,1737165050713,-472.69275815,0.00022602,3]
[349400734,1737165050723,-500.0,0.00022602,3]
[349400735,1737165050732,-500.0,0.00022602,3]
[349400736,1737165050741,-500.0,0.00022602,3]
[349400737,1737165050750,-500.0,0.00022602,3]
[349400738,1737165050759,-500.0,0.00022602,3]
[349400739,1737165050768,-500.0,0.00022602,3]
[349400740,1737165050777,-261.72384015,0.00022602,3]
[349400741,1737165050789,-500.0,0.00022602,3]
[349400742,1737165050798,-500.0,0.00022602,3]
[349400743,1737165050807,-670.36,0.00022602,3]
[349400744,1737165050816,-500.0,0.00022602,3]
[349400745,1737165050825,-500.0,0.00022602,3]
[349400746,1737165050835,-500.0,0.00022602,3]
[349400747,1737165050845,-1526.67,0.00022602,3]
[349400748,1737165050854,-500.0,0.00022602,3]
[349400749,1737165050864,-500.0,0.00022602,3]
[349400750,1737165050874,-960.98,0.00022602,3]
[349400751,1737165050884,-3511.61,0.00022602,3]
[349400752,1737165050893,-506.10675543,0.00022602,3]
[349400753,1737165050902,-500.0,0.00022602,3]
[349400754,1737165050912,-2961.83,0.00022602,3]
[349400755,1737165050921,-1289.87,0.00022602,3]
[349400756,1737165050931,-524.22,0.00022602,3]
[349400757,1737165050941,-636.72674073,0.00022602,2]
[349400758,1737165050950,-986.15,0.00022602,3]
[349400759,1737165050960,-463.21521331,0.00022602,3]
[349400760,1737165050970,-500.0,0.00022602,3]
[349400761,1737165050980,-500.0,0.00022602,3]
[349400762,1737165050989,-1126.32950266,0.00022602,3]
[349400763,1737165051001,-1619.04049734,0.00022602,3]
[349400764,1737165051011,-500.0,0.00022602,3]
[349400765,1737165051020,-500.0,0.00022602,3]
[349400766,1737165051031,-500.0,0.00022602,3]
[349400767,1737165051040,-500.0,0.00022602,3]
[349400768,1737165051049,-500.0,0.00022602,3]
[349400769,1737165051058,-500.0,0.00022602,3]
[349400770,1737165051067,-500.0,0.00022602,3]
[349400771,1737165051077,-1630.02,0.00022602,3]
[349400772,1737165051086,-1224.09,0.00022602,3]
[349400773,1737165051095,-500.0,0.00022602,3]
[349400774,1737165051106,-500.0,0.00022602,3]
[349400775,1737165051115,-500.0,0.00022602,3]
[349400776,1737165051125,-1110.21,0.00022602,3]
[349400777,1737165051134,-964.61,0.00022602,3]
[349400778,1737165051144,-4076.15,0.00022602,3]
[349400779,1737165051153,-519.58,0.00022602,3]
[349400780,1737165051163,-1112.73,0.00022602,3]
[349400781,1737165051172,-1077.05,0.00022602,3]
[349400782,1737165051182,-833.45,0.00022602,3]
[349400783,1737165051192,-500.0,0.00022602,3]
[349400784,1737165051201,-507.14,0.00022602,3]
[349400785,1737165051211,-6269.75,0.00022602,3]
[349400786,1737165051221,-500.0,0.00022602,3]
[349400787,1737165051230,-831.72,0.00022602,3]
[349400788,1737165051239,-500.0,0.00022602,3]
[349400789,1737165051249,-500.0,0.00022602,3]
[349400790,1737165051258,-695.5,0.00022602,3]
[349400791,1737165051268,-500.0,0.00022602,3]
[349400792,1737165051277,-500.0,0.00022602,3]
[349400793,1737165051286,-16666.27,0.00022602,3]
[349400794,1737165051296,-500.0,0.00022602,3]
[349400795,1737165051305,-1000.0,0.00022621,2]
[349400796,1737165051315,-155.0,0.00022631,2]
[349400797,1737165051325,-155.0,0.00022631,2]
[349400798,1737165051334,-263.8,0.00022631,2]
[349400799,1737165051343,-155.0,0.0002264,2]
[349400800,1737165051353,-155.0,0.0002264,2]
[349400801,1737165051362,-155.0,0.0002264,2]
[349400802,1737165051372,-155.0,0.0002264,2]
[349400803,1737165051381,-155.0,0.0002264,2]
[349400804,1737165051391,-155.0,0.0002264,2]
[349400805,1737165051401,-155.0,0.0002264,2]
[349400806,1737165051412,-155.0,0.0002264,2]
[349400807,1737165051422,-155.0,0.0002264,2]
[349400808,1737165051431,-155.0,0.0002264,2]
[349400809,1737165051440,-155.0,0.0002264,2]
[349400810,1737165051453,-155.0,0.0002264,2]
[349400811,1737165051463,-155.0,0.0002264,2]
[349400812,1737165051474,-155.0,0.0002264,2]
[349400813,1737165051483,-155.0,0.0002264,2]
[349400814,1737165051494,-155.0,0.0002264,2]
[349400815,1737165051503,-155.0,0.0002264,2]
[349400816,1737165051512,-155.0,0.0002264,2]
[349400817,1737165051523,-155.0,0.0002264,2]
[349400818,1737165051532,-155.0,0.0002264,2]
[349400819,1737165051542,-207.0,0.0002264,2]
[349400820,1737165051551,-319.79011135,0.00022659,3]
[349400821,1737165051561,-319.79011135,0.00022728,3]
[349400822,1737165051570,-160.0,0.00022738,2]
[349400823,1737165051579,-500.0,0.00022739,3]
[349400824,1737165051589,-500.0,0.00022739,3]
[349400825,1737165051598,-500.0,0.00022739,3]
[349400826,1737165051607,-500.0,0.00022739,3]
[349400827,1737165051616,-500.0,0.00022739,3]
[349400828,1737165051626,-500.0,0.00022739,3]
[349400829,1737165051635,-500.0,0.00022739,3]
[349400830,1737165051644,-500.0,0.00022739,3]
[349400831,1737165051653,-500.0,0.00022739,3]
[349400832,1737165051663,-670.36,0.00022739,3]
[349400833,1737165051673,-500.0,0.00022739,3]
[349400834,1737165051683,-500.0,0.00022739,3]
[349400835,1737165051692,-500.0,0.00022739,3]
[349400836,1737165051702,-1526.67,0.00022739,3]
[349400837,1737165051711,-213.17570149,0.00022739,3]
[349400838,1737165051721,-500.0,0.00022739,3]
[349400839,1737165051731,-960.98,0.00022739,3]
[349400840,1737165051740,-3511.61,0.00022739,3]
[349400841,1737165051749,-500.0,0.00022739,3]
[349400842,1737165051759,-2961.83,0.00022739,3]
[349400843,1737165051769,-1289.87,0.00022739,3]
[349400844,1737165051778,-524.22,0.00022739,3]
[349400845,1737165051788,-986.15,0.00022739,3]
[349400846,1737165051797,-500.0,0.00022739,3]
[349400847,1737165051807,-500.0,0.00022739,3]
[349400848,1737165051816,-2745.37,0.00022739,3]
[349400849,1737165051826,-534.65390176,0.00022739,3]
[349400850,1737165051835,-500.0,0.00022739,3]
[349400851,1737165051844,-500.0,0.00022739,3]
[349400852,1737165051854,-500.0,0.00022739,3]
[349400853,1737165051864,-500.0,0.00022739,3]
[349400854,1737165051873,-500.0,0.00022739,3]
[349400855,1737165051883,-500.0,0.00022739,3]
[349400856,1737165051893,-1630.02,0.00022739,3]
[349400857,1737165051902,-1089.65744071,0.00022739,3]
[349400858,1737165051915,-134.43255929,0.00022739,3]
[349400859,1737165051925,-500.0,0.00022739,3]
[349400860,1737165051934,-500.0,0.00022739,3]
[349400861,1737165051943,-500.0,0.00022739,3]
[349400862,1737165051953,-1110.21,0.00022739,3]
[349400863,1737165051963,-964.61,0.00022739,3]
[349400864,1737165051972,-4076.15,0.00022739,3]
[349400865,1737165051982,-519.58,0.00022739,3]
[349400866,1737165051991,-1112.73,0.00022739,3]
[349400867,1737165052000,-1077.05,0.00022739,3]
[349400868,1737165052009,-833.45,0.00022739,3]
[349400869,1737165052019,-574.77882388,0.00022739,3]
[349400870,1737165052028,-507.14,0.00022739,3]
[349400871,1737165052037,-95.48861681,0.00022739,3]
[349400872,1737165057750,2947.0,0.00025,120]
[349400874,1737165072334,1000.0,0.00025,120]
[349400888,1737165432561,168.85,0.00025,120]
[349400890,1737165848295,164.768816,0.00013973,2]
[349400891,1737165953333,468.0,0.00025,120]
[349400902,1737166160925,400.0,0.00025,120]
[349400990,1737166238567,-203.37353112,0.0001835,2]
[349400992,1737166238577,-281.61146888,0.00018535,2]
[349400995,1737166238589,-95.46477764,0.00018535,2]
[349400997,1737166238599,-179.088542,0.0001949,2]
[349400999,1737166238608,-300.0,0.0001961,2]
[349401001,1737166238618,-10155.3537629,0.00019611,2]
[349401003,1737166238627,-4996.30598834,0.0002,2]
[349401005,1737166238637,-287.136,0.00020502,2]
[349401007,1737166238646,-1585.0,0.000208,2]
[349401009,1737166238655,-97530.7601088,0.00020877,2]
[349401011,1737166238665,-1567.6173292,0.00020946,2]
[349401013,1737166238674,-156.81867393,0.00021046,2]
[349401015,1737166238683,-1567.61732917,0.00021338,2]
[349401017,1737166238692,-420.0,0.00021362,2]
[349401019,1737166238702,-500.0000009,0.0002138,2]
[349401021,1737166238711,-156.81867392,0.000215,2]
[349401023,1737166238720,-422.895,0.000216,2]
[349401026,1737166238730,-500.0,0.000216,2]
[349401028,1737166238739,-788.6105659,0.0002182,2]
[349401030,1737166238748,-358.1126103,0.00021863,2]
[349401032,1737166238757,-151.0,0.000219,3]
[349401034,1737166238766,-151.0,0.000219,3]
[349401035,1737166238776,-201.34932959,0.000219,3]
[349401038,1737166238786,-500.0,0.00021916,2]
[349401040,1737166238795,-272.73224383,0.00021916,2]
[349401042,1737166238805,-161.13251113,0.00021916,2]
[349401044,1737166238814,-500.0,0.00021916,2]
[349401045,1737166238823,-500.0,0.00021916,2]
[349401047,1737166238835,-500.0,0.00021916,2]
[349401050,1737166238845,-500.0,0.00021916,2]
[349401052,1737166238854,-464.8044419,0.00021916,2]
[349401054,1737166238864,-500.0,0.00021916,2]
[349401056,1737166238873,-500.0,0.00021916,2]
[349401058,1737166238883,-169.97577971,0.00021916,2]
[349401060,1737166238892,-500.0,0.00021916,2]
[349401062,1737166238901,-500.0,0.00021916,2]
[349401064,1737166238910,-152.13943735,0.00021916,2]
[349401066,1737166238920,-500.0,0.00021916,2]
[349401068,1737166238930,-500.0,0.00021916,2]
[349401070,1737166238939,-500.0,0.00021916,2]
[349401072,1737166238948,-500.0,0.00021916,2]
[349401074,1737166238958,-500.0,0.00021916,2]
[349401076,1737166238967,-500.0,0.00021916,2]
[349401078,1737166238977,-500.0,0.00021916,2]
[349401080,1737166238987,-500.0,0.00021916,2]
[349401082,1737166238996,-500.0,0.00021916,2]
[349401084,1737166239006,-239.52397147,0.00021916,2]
[349401086,1737166239015,-500.0,0.00021916,2]
[349401088,1737166239024,-500.0,0.00021916,2]
[349401090,1737166239037,-500.0,0.00021916,2]
[349401092,1737166239047,-500.0,0.00021916,2]
[349401094,1737166239056,-500.0,0.00021916,2]
[349401096,1737166239065,-500.0,0.00021916,2]
[349401098,1737166239074,-500.0,0.00021916,2]
[349401100,1737166239084,-366.20627604,0.00021916,2]
[349401102,1737166239093,-500.0,0.00021916,2]
[349401104,1737166239103,-500.0,0.00021916,2]
[349401106,1737166239114,-500.0,0.00021916,2]
[349401108,1737166239123,-500.0,0.00021916,2]
[349401110,1737166239133,-220.63976474,0.00021916,2]
[349401112,1737166239142,-486.50482918,0.00021916,2]
[349401114,1737166239152,-500.0,0.00021916,2]
[349401116,1737166239162,-500.0,0.00021916,2]
[349401118,1737166239172,-500.0,0.00021916,2]
[349401120,1737166239181,-500.0,0.00021916,2]
[349401122,1737166239191,-500.0,0.00021916,2]
[349401124,1737166239201,-500.0,0.00021916,2]
[349401126,1737166239211,-500.0,0.00021916,2]
[349401128,1737166239220,-500.0,0.00021916,2]
[349401131,1737166239230,-500.0,0.00021916,2]
[349401133,1737166239240,-602.93233725,0.00021916,2]
[349401135,1737166239249,-500.0,0.00021916,2]
[349401137,1737166239258,-500.0,0.00021916,2]
[349401139,1737166239269,-500.0,0.00021916,2]
[349401141,1737166239277,-406.12955508,0.00021917,3]
[349401143,1737166239290,-502.98185298,0.00021917,3]
[349401145,1737166239299,-498.70775969,0.00021917,3]
[349401147,1737166239309,-503.32118052,0.00021917,3]
[349401149,1737166239318,-302.74829174,0.00021917,3]
[349401151,1737166239327,-504.46058154,0.00021917,3]
[349401153,1737166239336,-503.35241925,0.00021917,3]
[349401155,1737166239346,-505.18790813,0.00021917,3]
[349401157,1737166239355,-504.31735099,0.00021917,3]
[349401159,1737166239364,-506.06385706,0.00021917,2]
[349401161,1737166239374,-501.20550957,0.00021917,3]
[349401163,1737166239384,-503.65582781,0.00021917,3]
[349401165,1737166239393,-503.54480078,0.00021917,3]
[349401167,1737166239402,-500.0,0.00021917,3]
[349401169,1737166239411,-500.0,0.00021917,3]
[349401171,1737166239421,-516.24425339,0.00021917,3]
[349401173,1737166239431,-502.55329741,0.00021917,3]
[349401175,1737166239440,-371.49548032,0.00021917,3]
[349401177,1737166239450,-504.47426201,0.00021917,2]
[349401179,1737166239460,-502.70155649,0.00021917,3]
[349401181,1737166239469,-504.92669996,0.00021917,3]
[349401183,1737166239479,-500.0,0.00021917,3]
[349401185,1737166239489,-502.64007496,0.00021917,3]
[349401187,1737166239498,-503.56297778,0.00021917,3]
[349401189,1737166239508,-500.0,0.00021917,3]
[349401191,1737166239518,-502.22409895,0.00021917,3]
[349401193,1737166239527,-501.39758833,0.00021917,3]
[349401195,1737166239540,-500.0,0.00021917,3]
[349401198,1737166239550,-512.6240327,0.00021917,3]
[349401200,1737166239559,-502.91595912,0.00021917,3]
[349401202,1737166239569,-501.82289577,0.00021917,3]
[349401204,1737166239579,-521.21,0.00021917,3]
[349401206,1737166239588,-505.03404812,0.00021917,3]
[349401208,1737166239598,-503.30944535,0.00021917,3]
[349401210,1737166239607,-502.2291007,0.00021917,3]
[349401212,1737166239616,-502.21021554,0.00021917,3]
[349401214,1737166239625,-502.08836052,0.00021917,3]
[349401216,1737166239635,-503.49066818,0.00021917,3]
[349401218,1737166239645,-501.24100071,0.00021917,3]
[349401220,1737166239654,-501.76957315,0.00021917,3]
[349401222,1737166239663,-500.0,0.00021917,3]
[349401224,1737166239673,-500.96847737,0.00021917,3]
[349401226,1737166239681,-503.84145454,0.00021917,3]
[349401228,1737166239691,-502.68716634,0.00021917,3]
[349401230,1737166239700,-502.37959738,0.00021917,3]
[349401232,1737166239709,-500.0,0.00021917,3]
[349401234,1737166239719,-502.64188982,0.00021917,3]
[349401236,1737166239729,-502.06220107,0.00021917,3]
[349401238,1737166239739,-500.5626937,0.00021917,3]
[349401240,1737166239749,-501.99739433,0.00021917,3]
[349401242,1737166239758,-501.66638854,0.00021917,3]
[349401244,1737166239769,-502.38537142,0.00021917,3]
[349401246,1737166239779,-501.34935307,0.00021917,3]
[349401249,1737166239791,-500.32079836,0.00021917,3]
[349401250,1737166239800,-502.31379587,0.00021917,3]
[349401253,1737166239810,-502.81471183,0.00021917,3]
[349401255,1737166239820,-501.61701868,0.00021917,3]
[349401256,1737166239829,-594.62838443,0.00021917,3]
[349401259,1737166239843,-503.2509781,0.00021917,3]
[349401261,1737166239852,-501.21830971,0.00021917,3]
[349401263,1737166239862,-503.35905788,0.00021917,3]
[349401264,1737166239871,-501.78385898,0.00021917,3]
[349401267,1737166239883,-500.50692236,0.00021917,3]
[349401268,1737166239892,-503.22145334,0.00021917,3]
[349401270,1737166239902,-503.21259239,0.00021917,3]
[349401272,1737166239912,-505.46672624,0.00021917,3]
[349401275,1737166239922,-336.91017072,0.00021917,3]
[349401277,1737166239932,-501.64769611,0.00021917,3]
[349401279,1737166239941,-502.30583508,0.00021917,3]
[349401281,1737166239951,-502.49005304,0.00021917,3]
[349401282,1737166239960,-501.00481511,0.00021917,3]
[349401283,1737166239970,-501.11584327,0.00021917,3]
[349401284,1737166239980,-500.0,0.00021917,3]
[349401285,1737166239989,-502.5172303,0.00021917,3]
[349401286,1737166239999,-500.0,0.00021917,3]
[349401287,1737166240009,-501.56137761,0.00021917,3]
[349401288,1737166240018,-500.0,0.00021917,3]
[349401289,1737166240027,-500.0,0.00021917,3]
[349401290,1737166240038,-501.76585943,0.00021917,3]
[349401291,1737166240047,-500.0,0.00021917,3]
[349401293,1737166240056,-502.82076199,0.00021917,3]
[349401294,1737166240067,-502.3,0.00021917,3]
[349401296,1737166240077,-500.0,0.00021917,3]
[349401298,1737166240086,-502.57993651,0.00021917,3]
[349401300,1737166240095,-507.97089696,0.00021917,3]
[349401302,1737166240105,-501.49747372,0.00021917,3]
[349401305,1737166240114,-500.0,0.00021917,3]
[349401306,1737166240124,-502.00385057,0.00021917,3]
[349401309,1737166240133,-500.0,0.00021917,3]
[349401311,1737166240145,-501.57081572,0.00021917,3]
[349401312,1737166240155,-1002.98738426,0.00021917,3]
[349401315,1737166240164,-501.64163006,0.00021917,2]
[349401317,1737166240174,-508.67,0.00021917,3]
[349401318,1737166240184,-500.0,0.00021917,3]
[349401320,1737166240193,-502.79149195,0.00021917,3]
[349401323,1737166240203,-502.25229592,0.00021917,3]
[349401324,1737166240212,-500.0,0.00021917,3]
[349401327,1737166240222,-508.78384837,0.00021917,3]
[349401328,1737166240232,-500.0,0.00021917,3]
[349401330,1737166240241,-500.0,0.00021917,3]
[349401332,1737166240251,-500.0,0.00021917,3]
[349401334,1737166240261,-500.0,0.00021917,3]
[349401336,1737166240271,-500.0,0.00021917,3]
[349401339,1737166240280,-502.37631169,0.00021917,3]
[349401340,1737166240291,-500.0,0.00021917,3]
[349401342,1737166240300,-501.15354399,0.00021917,3]
[349401344,1737166240309,-500.0,0.00021917,3]
[349401346,1737166240319,-500.0,0.00021917,3]
[349401349,1737166240328,-500.0,0.00021917,3]
[349401350,1737166240338,-648.26,0.00021917,3]
[349401352,1737166240347,-503.7394787,0.00021917,3]
[349401354,1737166240356,-501.70804478,0.00021917,3]
[349401356,1737166240365,-502.09346035,0.00021917,3]
[349401359,1737166240375,-501.05130759,0.00021917,3]
[349401360,1737166240384,-500.0,0.00021917,3]
[349401362,1737166240393,-500.0,0.00021917,3]
[349401364,1737166240403,-503.1256222,0.00021917,3]
[349401366,1737166240412,-151.0,0.00021917,2]
[349401369,1737166240421,-151.0,0.00021917,2]
[349401371,1737166240432,-500.0,0.00021917,3]
[349401373,1737166240441,-500.0,0.00021917,3]
[349401375,1737166240451,-500.70999061,0.00021917,3]
[349401377,1737166240460,-501.41327211,0.00021917,3]
[349401379,1737166240469,-528.7,0.00021917,3]
[349401381,1737166240479,-504.85441009,0.00021917,3]
[349401383,1737166240488,-300.0,0.00021917,3]
[349401385,1737166240498,-501.31472378,0.00021917,3]
[349401387,1737166240507,-501.76,0.00021917,3]
[349401389,1737166240516,-500.0,0.00021917,3]
[349401391,1737166240526,-561.18373008,0.00021917,3]
[349401393,1737166240537,-500.0,0.00021917,3]
[349401395,1737166240546,-500.0,0.00021917,3]
[349401397,1737166240556,-502.47782898,0.00021917,3]
[349401399,1737166240565,-500.0,0.00021917,3]
[349401401,1737166240575,-502.07983487,0.00021917,3]
[349401402,1737166240584,-590.42,0.00021917,3]
[349401405,1737166240594,-504.39294945,0.00021917,3]
[349401406,1737166240603,-502.79922751,0.00021917,3]
[349401408,1737166240612,-151.0,0.00021917,2]
[349401410,1737166240622,-151.0,0.00021917,2]
[349401412,1737166240632,-500.0,0.00021917,3]
[349401414,1737166240641,-500.0,0.00021917,3]
[349401416,1737166240650,-500.0,0.00021917,3]
[349401418,1737166240660,-151.0,0.00021917,2]
[349401420,1737166240670,-151.0,0.00021917,2]
[349401422,1737166240679,-500.54930078,0.00021917,3]
[349401424,1737166240688,-500.0,0.00021917,3]
[349401426,1737166240698,-501.96197512,0.00021917,3]
[349401427,1737166240707,-592.46593493,0.00021917,3]
[349401429,1737166240716,-484.30407497,0.00021917,3]
[349401430,1737166240725,-503.23266644,0.00021917,3]
[349401432,1737166240734,-501.46938179,0.00021917,3]
[349401433,1737166240745,-604.06,0.00021917,3]
[349401435,1737166240755,-500.0,0.00021917,3]
[349401436,1737166240765,-500.0,0.00021917,3]
[349401438,1737166240774,-502.22829155,0.00021917,3]